[Event "Early-Titled-Tuesday-Blitz-August-29-2023"]
[Site "Chess.com"]
[Date "2023.08.29"]
[Round "8"]
[White "Bauman_Guy"]
[Black "Ramosha"]
[Result "1-0"]
[WhiteElo "2809"]
[BlackElo "2585"]
[TimeControl "180+1"]
[EndTime "9:26:09 PDT"]
[Termination "Bauman_Guy won by resignation"]

1. e4 {[%clk 0:03:00.9]} 1... c6 {[%clk 0:02:59.8]} 2. d4 {[%clk 0:03:01]} 2...
d5 {[%clk 0:03:00.7]} 3. e5 {[%clk 0:03:01.4]} 3... Bf5 {[%clk 0:03:00.3]} 4. h4
{[%clk 0:03:01.8]} 4... h5 {[%clk 0:03:00.4]} 5. Bd3 {[%clk 0:03:02.1]} 5...
Bxd3 {[%clk 0:03:00.3]} 6. Qxd3 {[%clk 0:03:03]} 6... Qa5+ {[%clk 0:03:01]} 7.
Nd2 {[%clk 0:03:02.6]} 7... e6 {[%clk 0:03:01.2]} 8. Nf3 {[%clk 0:03:03]} 8...
Ne7 {[%clk 0:03:01.5]} 9. O-O {[%clk 0:03:02.6]} 9... Nf5 {[%clk 0:03:01.8]} 10.
a4 {[%clk 0:03:02.7]} 10... Qa6 {[%clk 0:03:01.3]} 11. c4 {[%clk 0:03:02.5]}
11... Nd7 {[%clk 0:03:01.3]} 12. b3 {[%clk 0:03:00.9]} 12... Be7 {[%clk
0:03:01.3]} 13. Ba3 {[%clk 0:02:53.4]} 13... Bxa3 {[%clk 0:03:01]} 14. Rxa3
{[%clk 0:02:54.3]} 14... O-O {[%clk 0:03:01.6]} 15. Qc3 {[%clk 0:02:50.1]} 15...
Rad8 {[%clk 0:03:00.9]} 16. c5 {[%clk 0:02:49]} 16... b6 {[%clk 0:02:58.2]} 17.
b4 {[%clk 0:02:48.4]} 17... bxc5 {[%clk 0:02:58.4]} 18. dxc5 {[%clk 0:02:40.8]}
18... f6 {[%clk 0:02:58.4]} 19. exf6 {[%clk 0:02:29]} 19... gxf6 {[%clk
0:02:59.3]} 20. Nb3 {[%clk 0:02:17.6]} 20... e5 {[%clk 0:02:58.3]} 21. Qc2
{[%clk 0:02:17.2]} 21... e4 {[%clk 0:02:56.4]} 22. Nbd4 {[%clk 0:02:17.2]} 22...
Ng7 {[%clk 0:02:46.9]} 23. Nd2 {[%clk 0:02:07.5]} 23... Qc8 {[%clk 0:02:46.6]}
24. Rg3 {[%clk 0:02:01.4]} 24... Ne5 {[%clk 0:02:43.3]} 25. b5 {[%clk
0:02:01.4]} 25... f5 {[%clk 0:02:42.5]} 26. Rg5 {[%clk 0:01:59]} 26... Nf7
{[%clk 0:02:38.6]} 27. Nxc6 {[%clk 0:01:58.5]} 27... Rd7 {[%clk 0:02:35.2]} 28.
Rg3 {[%clk 0:01:27.6]} 28... f4 {[%clk 0:02:34.1]} 29. Rg6 {[%clk 0:01:22.2]}
29... Kh7 {[%clk 0:02:31.9]} 30. Nxe4 {[%clk 0:01:22.2]} 30... dxe4 {[%clk
0:02:29.5]} 31. Qxe4 {[%clk 0:01:23.1]} 31... Re8 {[%clk 0:02:29.5]} 32. Re6+
{[%clk 0:01:13.3]} 32... Kh8 {[%clk 0:02:23.2]} 33. Rxe8+ {[%clk 0:01:12.7]}
33... Qxe8 {[%clk 0:02:23]} 34. Qxf4 {[%clk 0:01:13.1]} 34... Rd5 {[%clk
0:02:18.1]} 35. Rc1 {[%clk 0:01:07.6]} 35... Rf5 {[%clk 0:02:17.6]} 36. Qe3
{[%clk 0:01:06.1]} 36... Qxe3 {[%clk 0:02:17.2]} 37. fxe3 {[%clk 0:01:07]} 37...
Ne6 {[%clk 0:02:17.8]} 38. Nxa7 {[%clk 0:01:04.6]} 38... Nxc5 {[%clk 0:02:12.1]}
39. b6 {[%clk 0:01:04.6]} 39... Nd6 {[%clk 0:02:11.4]} 40. a5 {[%clk 0:01:04.5]}
40... Na6 {[%clk 0:02:05.1]} 41. Nc6 {[%clk 0:01:01.6]} 41... Nb7 {[%clk
0:02:03.3]} 42. Rd1 {[%clk 0:00:46]} 42... Kg7 {[%clk 0:00:55.5]} 43. Rd7+
{[%clk 0:00:45]} 43... Rf7 {[%clk 0:00:55.6]} 44. Rd5 {[%clk 0:00:43.6]} 44...
Kg6 {[%clk 0:00:53]} 45. Ne5+ {[%clk 0:00:43.3]} 45... Kf6 {[%clk 0:00:49.1]}
46. Nxf7 {[%clk 0:00:44.2]} 46... Kxf7 {[%clk 0:00:50]} 47. Rd7+ {[%clk
0:00:44.1]} 1-0

[Event "Early-Titled-Tuesday-Blitz-August-29-2023"]
[Site "Chess.com"]
[Date "2023.08.29"]
[Round "8"]
[White "bascheyaro"]
[Black "Mikedannnn"]
[Result "1-0"]
[WhiteElo "2811"]
[BlackElo "2593"]
[TimeControl "180+1"]
[EndTime "9:26:11 PDT"]
[Termination "bascheyaro won by resignation"]

1. d4 {[%clk 0:03:00.9]} 1... c5 {[%clk 0:02:53.2]} 2. c3 {[%clk 0:02:59.3]}
2... Nf6 {[%clk 0:02:50.1]} 3. Bf4 {[%clk 0:02:59.2]} 3... e6 {[%clk 0:02:48.3]}
4. Nf3 {[%clk 0:02:58.6]} 4... b6 {[%clk 0:02:46.8]} 5. Nbd2 {[%clk 0:02:58.3]}
5... Bb7 {[%clk 0:02:45.7]} 6. e3 {[%clk 0:02:58.5]} 6... Be7 {[%clk 0:02:42.5]}
7. Bd3 {[%clk 0:02:57.5]} 7... O-O {[%clk 0:02:41]} 8. Qe2 {[%clk 0:02:57.5]}
8... cxd4 {[%clk 0:02:40.3]} 9. exd4 {[%clk 0:02:57.6]} 9... d6 {[%clk
0:02:38.7]} 10. O-O {[%clk 0:02:55.9]} 10... a6 {[%clk 0:02:32.9]} 11. Rfe1
{[%clk 0:02:55.6]} 11... Re8 {[%clk 0:02:30.9]} 12. Rad1 {[%clk 0:02:54.8]}
12... Nbd7 {[%clk 0:02:29.6]} 13. Ng5 {[%clk 0:02:54.1]} 13... Nf8 {[%clk
0:02:20.3]} 14. Nde4 {[%clk 0:02:33.3]} 14... Nxe4 {[%clk 0:02:15.2]} 15. Nxe4
{[%clk 0:02:29.8]} 15... Bxe4 {[%clk 0:02:14.6]} 16. Bxe4 {[%clk 0:02:27.6]}
16... d5 {[%clk 0:02:14.2]} 17. Bb1 {[%clk 0:02:22.6]} 17... Bd6 {[%clk
0:02:11]} 18. Be3 {[%clk 0:02:20.1]} 18... b5 {[%clk 0:02:07.5]} 19. a3 {[%clk
0:02:19.9]} 19... Qb8 {[%clk 0:02:02.2]} 20. g3 {[%clk 0:02:18.1]} 20... a5
{[%clk 0:02:01.8]} 21. f4 {[%clk 0:02:17.3]} 21... b4 {[%clk 0:02:00.9]} 22.
axb4 {[%clk 0:02:17.3]} 22... axb4 {[%clk 0:02:00.4]} 23. c4 {[%clk 0:02:17.8]}
23... dxc4 {[%clk 0:01:56.2]} 24. Qxc4 {[%clk 0:02:18.7]} 24... Nd7 {[%clk
0:01:39]} 25. d5 {[%clk 0:02:07.6]} 25... e5 {[%clk 0:01:24.8]} 26. Qc2 {[%clk
0:01:45.8]} 26... Nf6 {[%clk 0:01:14.8]} 27. fxe5 {[%clk 0:01:44.9]} 27... b3
{[%clk 0:00:37.1]} 28. Qd3 {[%clk 0:01:28.3]} 28... Rxe5 {[%clk 0:00:35.9]} 29.
Bd4 {[%clk 0:01:24.1]} 29... Rxd5 {[%clk 0:00:34.1]} 30. Qc4 {[%clk 0:01:11.5]}
30... Bxg3 {[%clk 0:00:28.1]} 31. Bxf6 {[%clk 0:01:11.6]} 31... Bxh2+ {[%clk
0:00:16.2]} 32. Kh1 {[%clk 0:01:11.9]} 32... Rxd1 {[%clk 0:00:09.4]} 33. Rxd1
{[%clk 0:01:11.7]} 33... Qg3 {[%clk 0:00:09.4]} 34. Qe4 {[%clk 0:01:05]} 34...
Qh3 {[%clk 0:00:09.4]} 35. Qxa8+ {[%clk 0:01:04.6]} 1-0

[Event "Early-Titled-Tuesday-Blitz-August-29-2023"]
[Site "Chess.com"]
[Date "2023.08.29"]
[Round "8"]
[White "Muracle"]
[Black "Agibileg"]
[Result "0-1"]
[WhiteElo "2494"]
[BlackElo "2622"]
[TimeControl "180+1"]
[EndTime "9:26:12 PDT"]
[Termination "Agibileg won on time"]

1. d4 {[%clk 0:02:20.3]} 1... Nf6 {[%clk 0:02:59.6]} 2. c4 {[%clk 0:02:18.7]}
2... g6 {[%clk 0:02:59.9]} 3. Nf3 {[%clk 0:02:19]} 3... Bg7 {[%clk 0:03:00.1]}
4. g3 {[%clk 0:02:19.7]} 4... O-O {[%clk 0:03:00.2]} 5. Bg2 {[%clk 0:02:20.1]}
5... d6 {[%clk 0:03:00.5]} 6. Nc3 {[%clk 0:02:20.7]} 6... c5 {[%clk 0:03:00.6]}
7. d5 {[%clk 0:02:20.7]} 7... e6 {[%clk 0:03:00.9]} 8. O-O {[%clk 0:02:20.7]}
8... exd5 {[%clk 0:03:01.1]} 9. cxd5 {[%clk 0:02:21.6]} 9... a6 {[%clk 0:03:00]}
10. a4 {[%clk 0:02:21.7]} 10... Nbd7 {[%clk 0:02:58.7]} 11. h3 {[%clk
0:02:19.5]} 11... Rb8 {[%clk 0:02:51.8]} 12. Bf4 {[%clk 0:02:02.8]} 12... Ne8
{[%clk 0:02:49.7]} 13. Bg5 {[%clk 0:02:01.1]} 13... Ndf6 {[%clk 0:02:35.7]} 14.
Bf4 {[%clk 0:02:00.8]} 14... b5 {[%clk 0:02:33.1]} 15. axb5 {[%clk 0:01:59.6]}
15... axb5 {[%clk 0:02:34]} 16. Nd2 {[%clk 0:01:46.8]} 16... b4 {[%clk
0:02:28.6]} 17. Na4 {[%clk 0:01:36.7]} 17... Nh5 {[%clk 0:02:14.7]} 18. Be3
{[%clk 0:01:29.1]} 18... Nc7 {[%clk 0:02:12.9]} 19. Nc4 {[%clk 0:01:28.1]} 19...
Nb5 {[%clk 0:02:04.3]} 20. g4 {[%clk 0:01:19.8]} 20... Nf6 {[%clk 0:02:02.6]}
21. Bf4 {[%clk 0:01:19.4]} 21... Bb7 {[%clk 0:01:46.2]} 22. e4 {[%clk
0:00:49.1]} 22... Re8 {[%clk 0:01:46.2]} 23. e5 {[%clk 0:00:42.8]} 23... dxe5
{[%clk 0:01:45.1]} 24. Bxe5 {[%clk 0:00:43.7]} 24... Ra8 {[%clk 0:01:24.9]} 25.
Nxc5 {[%clk 0:00:37]} 25... Rxa1 {[%clk 0:01:22.6]} 26. Qxa1 {[%clk 0:00:37.9]}
26... Bxd5 {[%clk 0:01:19.7]} 27. Bxf6 {[%clk 0:00:14.8]} 27... Bxf6 {[%clk
0:01:13]} 28. Ne3 {[%clk 0:00:14.9]} 28... Bxg2 {[%clk 0:01:12.4]} 29. Kxg2
{[%clk 0:00:15.8]} 29... Bd4 {[%clk 0:01:04.9]} 30. Qa4 {[%clk 0:00:08.2]} 30...
Qb6 {[%clk 0:01:01.9]} 31. Rc1 {[%clk 0:00:03.9]} 31... Bxc5 {[%clk 0:00:59.9]}
32. Nd5 {[%clk 0:00:01.6]} 32... Qc6 {[%clk 0:01:00.1]} 0-1

[Event "Early-Titled-Tuesday-Blitz-August-29-2023"]
[Site "Chess.com"]
[Date "2023.08.29"]
[Round "8"]
[White "LangesNasenhaar"]
[Black "Forge13"]
[Result "1-0"]
[WhiteElo "2481"]
[BlackElo "2640"]
[TimeControl "180+1"]
[EndTime "9:26:13 PDT"]
[Termination "LangesNasenhaar won by resignation"]

1. d4 {[%clk 0:03:00.9]} 1... Nf6 {[%clk 0:02:59.3]} 2. Nc3 {[%clk 0:03:01]}
2... d6 {[%clk 0:02:59.8]} 3. e4 {[%clk 0:02:59.2]} 3... e5 {[%clk 0:02:59]} 4.
Nf3 {[%clk 0:02:54.7]} 4... Nbd7 {[%clk 0:02:58.5]} 5. Rg1 {[%clk 0:02:54.4]}
5... h5 {[%clk 0:02:35]} 6. Bc4 {[%clk 0:02:42.1]} 6... exd4 {[%clk 0:02:34.6]}
7. Qxd4 {[%clk 0:02:34.3]} 7... c6 {[%clk 0:02:15.7]} 8. Bg5 {[%clk 0:02:28]}
8... Qb6 {[%clk 0:02:11.4]} 9. Qxb6 {[%clk 0:02:16.9]} 9... axb6 {[%clk
0:02:12.3]} 10. O-O-O {[%clk 0:02:09.9]} 10... b5 {[%clk 0:02:10.9]} 11. Bb3
{[%clk 0:02:09.5]} 11... b4 {[%clk 0:02:02.5]} 12. Ne2 {[%clk 0:01:52.2]} 12...
Nxe4 {[%clk 0:01:57.1]} 13. Rge1 {[%clk 0:01:51.4]} 13... f5 {[%clk 0:00:36.5]}
14. Ng3 {[%clk 0:01:39.4]} 14... Nc5 {[%clk 0:00:36.3]} 15. Nd2 {[%clk
0:01:19.2]} 15... Kd7 {[%clk 0:00:18.7]} 16. Nxf5 {[%clk 0:00:50]} 16... Nxd2
{[%clk 0:00:18.5]} 17. Bxd2 {[%clk 0:00:45.1]} 17... Kc7 {[%clk 0:00:17.8]} 18.
Nd4 {[%clk 0:00:41.9]} 18... Nxb3+ {[%clk 0:00:12]} 19. cxb3 {[%clk 0:00:36]}
19... Rxa2 {[%clk 0:00:12.6]} 20. Kb1 {[%clk 0:00:31.5]} 20... Ra5 {[%clk
0:00:12.6]} 21. Bxb4 {[%clk 0:00:29]} 21... Rb5 {[%clk 0:00:13.2]} 22. Nxb5+
{[%clk 0:00:28.1]} 22... cxb5 {[%clk 0:00:13]} 23. Re8 {[%clk 0:00:24.1]} 23...
Bd7 {[%clk 0:00:12.9]} 24. Bxd6+ {[%clk 0:00:21.2]} 24... Kc6 {[%clk 0:00:11.8]}
25. Rxf8 {[%clk 0:00:20.7]} 1-0

[Event "Early-Titled-Tuesday-Blitz-August-29-2023"]
[Site "Chess.com"]
[Date "2023.08.29"]
[Round "8"]
[White "HamedWafa4"]
[Black "kinga2008"]
[Result "1-0"]
[WhiteElo "2542"]
[BlackElo "2394"]
[TimeControl "180+1"]
[EndTime "9:26:16 PDT"]
[Termination "HamedWafa4 won by resignation"]

1. e4 {[%clk 0:03:00.9]} 1... c5 {[%clk 0:02:58.1]} 2. Nc3 {[%clk 0:02:59.7]}
2... Nc6 {[%clk 0:02:59]} 3. Nge2 {[%clk 0:02:55.3]} 3... e6 {[%clk 0:02:58.4]}
4. d4 {[%clk 0:02:51.9]} 4... d5 {[%clk 0:02:58.5]} 5. exd5 {[%clk 0:02:48.5]}
5... exd5 {[%clk 0:02:38]} 6. g3 {[%clk 0:02:48.6]} 6... Nf6 {[%clk 0:02:37.7]}
7. Bg2 {[%clk 0:02:47.9]} 7... cxd4 {[%clk 0:02:37.3]} 8. Nxd4 {[%clk
0:02:47.1]} 8... Bc5 {[%clk 0:02:36.5]} 9. Nxc6 {[%clk 0:02:34.1]} 9... bxc6
{[%clk 0:02:36.2]} 10. O-O {[%clk 0:02:34.7]} 10... O-O {[%clk 0:02:35.4]} 11.
Na4 {[%clk 0:02:32.5]} 11... Bd6 {[%clk 0:02:35]} 12. c4 {[%clk 0:02:31.6]}
12... dxc4 {[%clk 0:02:30.1]} 13. Bxc6 {[%clk 0:02:25.9]} 13... Bh3 {[%clk
0:02:30.6]} 14. Bg2 {[%clk 0:02:22.6]} 14... Qd7 {[%clk 0:02:29.5]} 15. Nc3
{[%clk 0:02:07.7]} 15... Bxg2 {[%clk 0:02:26.7]} 16. Kxg2 {[%clk 0:02:06.9]}
16... Rad8 {[%clk 0:02:25.7]} 17. Bg5 {[%clk 0:02:05.1]} 17... Qb7+ {[%clk
0:02:23.2]} 18. Qf3 {[%clk 0:02:04]} 18... Qxb2 {[%clk 0:02:21.4]} 19. Bxf6
{[%clk 0:02:02.6]} 19... gxf6 {[%clk 0:02:21.7]} 20. Rab1 {[%clk 0:01:23.1]}
20... Qc2 {[%clk 0:02:16.7]} 21. Rbc1 {[%clk 0:01:18.6]} 21... Qg6 {[%clk
0:02:06.8]} 22. Ne4 {[%clk 0:01:17.4]} 22... Be5 {[%clk 0:02:04.9]} 23. Rxc4
{[%clk 0:01:16]} 23... Rfe8 {[%clk 0:02:04.9]} 24. Rc6 {[%clk 0:01:14.5]} 24...
Re6 {[%clk 0:02:04.3]} 25. Rfc1 {[%clk 0:01:04.8]} 25... Kg7 {[%clk 0:01:55.4]}
26. h4 {[%clk 0:01:02.8]} 26... Rd4 {[%clk 0:01:53.7]} 27. Rxe6 {[%clk
0:00:56.2]} 27... fxe6 {[%clk 0:01:53.9]} 28. Nc5 {[%clk 0:00:55.6]} 28... f5
{[%clk 0:01:42.2]} 29. Qb7+ {[%clk 0:00:52.9]} 29... Kh6 {[%clk 0:01:38.1]} 30.
Re1 {[%clk 0:00:50.9]} 30... Rd5 {[%clk 0:01:24.8]} 31. Qc8 {[%clk 0:00:48.7]}
31... f4 {[%clk 0:01:11.3]} 32. Nxe6 {[%clk 0:00:21.9]} 32... fxg3 {[%clk
0:00:59.2]} 33. Qf8+ {[%clk 0:00:19.8]} 33... Kh5 {[%clk 0:00:56.3]} 34. Rxe5+
{[%clk 0:00:20.5]} 34... Rxe5 {[%clk 0:00:47.9]} 35. Nf4+ {[%clk 0:00:21.2]}
35... Kg4 {[%clk 0:00:45.8]} 36. Nxg6 {[%clk 0:00:21]} 36... hxg6 {[%clk
0:00:46.4]} 37. Qf3+ {[%clk 0:00:20]} 1-0

[Event "Early-Titled-Tuesday-Blitz-August-29-2023"]
[Site "Chess.com"]
[Date "2023.08.29"]
[Round "8"]
[White "DrDreBeats"]
[Black "WhiteKnight2612"]
[Result "0-1"]
[WhiteElo "2613"]
[BlackElo "2833"]
[TimeControl "180+1"]
[EndTime "9:26:23 PDT"]
[Termination "WhiteKnight2612 won by checkmate"]

1. e4 {[%clk 0:02:44.6]} 1... c5 {[%clk 0:02:57.3]} 2. Nf3 {[%clk 0:02:44.8]}
2... d6 {[%clk 0:02:57.8]} 3. d4 {[%clk 0:02:45.3]} 3... cxd4 {[%clk 0:02:57.5]}
4. Nxd4 {[%clk 0:02:46.2]} 4... Nf6 {[%clk 0:02:58.2]} 5. Nc3 {[%clk 0:02:46.9]}
5... Nc6 {[%clk 0:02:58.8]} 6. h3 {[%clk 0:02:46.5]} 6... e5 {[%clk 0:02:57.9]}
7. Nf3 {[%clk 0:02:46.3]} 7... Be6 {[%clk 0:02:54.4]} 8. Be3 {[%clk 0:02:44.8]}
8... Be7 {[%clk 0:02:52.7]} 9. Be2 {[%clk 0:02:45]} 9... d5 {[%clk 0:02:49.8]}
10. exd5 {[%clk 0:02:43.7]} 10... Nxd5 {[%clk 0:02:50.7]} 11. Nxd5 {[%clk
0:02:43.2]} 11... Bxd5 {[%clk 0:02:51.6]} 12. O-O {[%clk 0:02:43.4]} 12... O-O
{[%clk 0:02:51.5]} 13. c4 {[%clk 0:02:43.2]} 13... Be6 {[%clk 0:02:51.6]} 14. a3
{[%clk 0:02:38.7]} 14... a5 {[%clk 0:02:50.1]} 15. Qc2 {[%clk 0:02:38.5]} 15...
f6 {[%clk 0:02:45]} 16. Bd3 {[%clk 0:02:37]} 16... f5 {[%clk 0:02:41]} 17. Rfd1
{[%clk 0:02:29.4]} 17... Qe8 {[%clk 0:02:40.4]} 18. c5 {[%clk 0:02:24.8]} 18...
e4 {[%clk 0:02:38.8]} 19. Bc4 {[%clk 0:02:25.2]} 19... Qf7 {[%clk 0:02:35.8]}
20. Bxe6 {[%clk 0:02:22.4]} 20... Qxe6 {[%clk 0:02:36.7]} 21. Nd4 {[%clk
0:02:22.4]} 21... Qg6 {[%clk 0:02:35.8]} 22. Nxc6 {[%clk 0:02:21.5]} 22... bxc6
{[%clk 0:02:36.7]} 23. Rd7 {[%clk 0:02:19.7]} 23... Bf6 {[%clk 0:02:32.9]} 24.
Qc4+ {[%clk 0:02:19.4]} 24... Kh8 {[%clk 0:02:32.7]} 25. Bd4 {[%clk 0:02:19.5]}
25... f4 {[%clk 0:02:29.7]} 26. Bxf6 {[%clk 0:02:19.1]} 26... Rxf6 {[%clk
0:02:30.6]} 27. Rad1 {[%clk 0:02:19.2]} 27... Raf8 {[%clk 0:02:28.8]} 28. Re7
{[%clk 0:02:11.7]} 28... e3 {[%clk 0:02:08.3]} 29. Qe4 {[%clk 0:02:08.5]} 29...
exf2+ {[%clk 0:01:44.3]} 30. Kf1 {[%clk 0:02:02.8]} 30... Qh5 {[%clk 0:01:27.6]}
31. Rdd7 {[%clk 0:01:59.7]} 31... Rg8 {[%clk 0:01:23.1]} 32. Qd4 {[%clk
0:01:54.6]} 32... Qg5 {[%clk 0:01:07.2]} 33. Qxf2 {[%clk 0:01:34.1]} 33... f3
{[%clk 0:01:05.2]} 34. gxf3 {[%clk 0:01:26.9]} 34... Qc1+ {[%clk 0:00:58.2]} 35.
Kg2 {[%clk 0:01:26.5]} 35... Rg6+ {[%clk 0:00:56]} 36. Kh2 {[%clk 0:01:24.8]}
36... Qf4+ {[%clk 0:00:50.7]} 37. Kh1 {[%clk 0:01:24.1]} 37... Qf5 {[%clk
0:00:51.2]} 38. Kh2 {[%clk 0:01:17.7]} 38... Qf4+ {[%clk 0:00:50]} 39. Kh1
{[%clk 0:01:17.3]} 39... Rg3 {[%clk 0:00:50.1]} 40. Rf7 {[%clk 0:01:09.5]} 40...
Rxh3+ {[%clk 0:00:49.1]} 41. Kg1 {[%clk 0:01:07.8]} 41... Qc1+ {[%clk
0:00:48.4]} 42. Qf1 {[%clk 0:01:01.7]} 42... Qg5+ {[%clk 0:00:37.5]} 43. Kf2
{[%clk 0:00:58.6]} 43... Rh2+ {[%clk 0:00:36.8]} 44. Ke1 {[%clk 0:00:52.9]}
44... Qc1+ {[%clk 0:00:37.1]} 45. Rd1 {[%clk 0:00:50.3]} 45... Re8+ {[%clk
0:00:37.5]} 46. Qe2 {[%clk 0:00:49.3]} 46... Rexe2+ {[%clk 0:00:37.9]} 47. Kf1
{[%clk 0:00:48.1]} 47... Qxd1# {[%clk 0:00:38.5]} 0-1

[Event "Early-Titled-Tuesday-Blitz-August-29-2023"]
[Site "Chess.com"]
[Date "2023.08.29"]
[Round "8"]
[White "Orest_Vovk"]
[Black "LiamPutnam2008"]
[Result "0-1"]
[WhiteElo "2567"]
[BlackElo "2811"]
[TimeControl "180+1"]
[EndTime "9:26:24 PDT"]
[Termination "LiamPutnam2008 won by checkmate"]

1. e4 {[%clk 0:03:00.9]} 1... Nf6 {[%clk 0:03:00.9]} 2. Nc3 {[%clk 0:02:57.6]}
2... Nc6 {[%clk 0:02:58.5]} 3. Nf3 {[%clk 0:02:56.2]} 3... e5 {[%clk 0:02:56.3]}
4. Bc4 {[%clk 0:02:43.1]} 4... Nxe4 {[%clk 0:02:54.8]} 5. Nxe4 {[%clk
0:02:39.7]} 5... d5 {[%clk 0:02:54.8]} 6. Bd3 {[%clk 0:02:16.8]} 6... f5 {[%clk
0:02:48.7]} 7. Bb5 {[%clk 0:02:09.8]} 7... fxe4 {[%clk 0:02:31]} 8. Nxe5 {[%clk
0:02:07.6]} 8... Qf6 {[%clk 0:02:22.3]} 9. Nxc6 {[%clk 0:01:59.3]} 9... bxc6
{[%clk 0:02:23.2]} 10. Be2 {[%clk 0:01:58.2]} 10... Bc5 {[%clk 0:02:09.3]} 11.
O-O {[%clk 0:01:56.3]} 11... O-O {[%clk 0:02:10]} 12. d3 {[%clk 0:01:40.7]}
12... Bxf2+ {[%clk 0:02:07.4]} 13. Kh1 {[%clk 0:01:40.8]} 13... Qh4 {[%clk
0:02:08]} 14. dxe4 {[%clk 0:01:28.6]} 14... dxe4 {[%clk 0:02:07.2]} 15. Bc4+
{[%clk 0:00:54.1]} 15... Kh8 {[%clk 0:02:06.1]} 16. Be3 {[%clk 0:00:40.3]} 16...
Bg4 {[%clk 0:01:59.6]} 17. Bxf2 {[%clk 0:00:39.8]} 17... Rxf2 {[%clk 0:01:57.7]}
18. Qe1 {[%clk 0:00:39.2]} 18... Raf8 {[%clk 0:01:43.4]} 19. Qxe4 {[%clk
0:00:26.9]} 19... h6 {[%clk 0:01:25]} 20. Rxf2 {[%clk 0:00:10.1]} 20... Qxf2
{[%clk 0:01:25.5]} 21. Qxg4 {[%clk 0:00:08.7]} 21... Qxc2 {[%clk 0:01:26.1]} 22.
Rf1 {[%clk 0:00:06.6]} 22... Rxf1+ {[%clk 0:01:24.4]} 23. Bxf1 {[%clk 0:00:06]}
23... Qb1 {[%clk 0:01:25.1]} 24. Qc8+ {[%clk 0:00:04.4]} 24... Kh7 {[%clk
0:01:25.3]} 25. Qf8 {[%clk 0:00:05.3]} 25... Qd1 {[%clk 0:01:16.4]} 26. h3
{[%clk 0:00:04.9]} 26... c5 {[%clk 0:01:16.3]} 27. Qf5+ {[%clk 0:00:04.8]} 27...
Kh8 {[%clk 0:01:15.8]} 28. Kh2 {[%clk 0:00:05.4]} 28... Qd6+ {[%clk 0:01:14.9]}
29. g3 {[%clk 0:00:05.5]} 29... Qd2+ {[%clk 0:01:15]} 30. Bg2 {[%clk 0:00:05.2]}
30... Qxb2 {[%clk 0:01:15.7]} 31. Qxc5 {[%clk 0:00:05.1]} 31... Qxa2 {[%clk
0:01:14.7]} 32. Qxc7 {[%clk 0:00:05.2]} 32... a5 {[%clk 0:01:12.3]} 33. Qc8+
{[%clk 0:00:05.6]} 33... Kh7 {[%clk 0:01:12.8]} 34. Qf5+ {[%clk 0:00:06.2]}
34... Kh8 {[%clk 0:01:13.4]} 35. h4 {[%clk 0:00:06.6]} 35... a4 {[%clk
0:01:13.4]} 36. Kh3 {[%clk 0:00:06.4]} 36... Qg8 {[%clk 0:01:12.3]} 37. Bd5
{[%clk 0:00:05.6]} 37... Qd8 {[%clk 0:01:12.9]} 38. Be4 {[%clk 0:00:04.7]} 38...
Kg8 {[%clk 0:01:11]} 39. Qe6+ {[%clk 0:00:04.4]} 39... Kh8 {[%clk 0:01:09.6]}
40. Bd5 {[%clk 0:00:05.3]} 40... a3 {[%clk 0:01:08.6]} 41. Ba2 {[%clk
0:00:04.8]} 41... Qf8 {[%clk 0:01:05.9]} 42. Qb3 {[%clk 0:00:04.7]} 42... Qf1+
{[%clk 0:01:04.9]} 43. Kh2 {[%clk 0:00:04.6]} 43... Qf2+ {[%clk 0:01:05]} 44.
Kh3 {[%clk 0:00:05.1]} 44... Qf1+ {[%clk 0:01:05.4]} 45. Kg4 {[%clk 0:00:05.4]}
45... h5+ {[%clk 0:01:03.6]} 46. Kxh5 {[%clk 0:00:02.2]} 46... Qf5# {[%clk
0:01:03.9]} 0-1

[Event "Early-Titled-Tuesday-Blitz-August-29-2023"]
[Site "Chess.com"]
[Date "2023.08.29"]
[Round "8"]
[White "Ariadna_Atreides"]
[Black "sorch29"]
[Result "0-1"]
[WhiteElo "2229"]
[BlackElo "2366"]
[TimeControl "180+1"]
[EndTime "9:26:33 PDT"]
[Termination "sorch29 won on time"]

1. d4 {[%clk 0:03:00.9]} 1... Nf6 {[%clk 0:02:56.9]} 2. Nf3 {[%clk 0:03:00.4]}
2... g6 {[%clk 0:02:57.3]} 3. c4 {[%clk 0:02:59.9]} 3... Bg7 {[%clk 0:02:57.9]}
4. Nc3 {[%clk 0:02:59.9]} 4... d6 {[%clk 0:02:58.8]} 5. e4 {[%clk 0:02:58.4]}
5... O-O {[%clk 0:02:59.7]} 6. Be2 {[%clk 0:02:48.2]} 6... e5 {[%clk 0:03:00.1]}
7. d5 {[%clk 0:02:48.4]} 7... a5 {[%clk 0:02:45.2]} 8. h3 {[%clk 0:02:45.8]}
8... h6 {[%clk 0:02:44.6]} 9. Be3 {[%clk 0:02:42.3]} 9... Na6 {[%clk 0:02:44.2]}
10. Qd2 {[%clk 0:02:37.7]} 10... Kh7 {[%clk 0:02:37.4]} 11. g4 {[%clk
0:02:37.2]} 11... Nd7 {[%clk 0:02:36]} 12. Qc2 {[%clk 0:02:11.2]} 12... Ndc5
{[%clk 0:02:31]} 13. Nd2 {[%clk 0:02:09.7]} 13... Nb4 {[%clk 0:02:31.2]} 14. Qb1
{[%clk 0:02:08.5]} 14... a4 {[%clk 0:02:31.6]} 15. Nf1 {[%clk 0:02:02]} 15... f5
{[%clk 0:02:27.9]} 16. exf5 {[%clk 0:01:56.5]} 16... gxf5 {[%clk 0:02:28.8]} 17.
Ng3 {[%clk 0:01:55]} 17... e4 {[%clk 0:02:25.6]} 18. gxf5 {[%clk 0:01:41.5]}
18... Nbd3+ {[%clk 0:02:23.9]} 19. Kf1 {[%clk 0:01:33.3]} 19... Bxc3 {[%clk
0:02:23]} 20. bxc3 {[%clk 0:01:32.1]} 20... Bxf5 {[%clk 0:02:23.7]} 21. Bg4
{[%clk 0:00:49.7]} 21... Bg6 {[%clk 0:02:14.2]} 22. Kg2 {[%clk 0:00:48.1]} 22...
Qf6 {[%clk 0:02:12.9]} 23. Rf1 {[%clk 0:00:43.7]} 23... Qxc3 {[%clk 0:01:43.1]}
24. Qd1 {[%clk 0:00:36.8]} 24... Nf4+ {[%clk 0:01:32.9]} 25. Kh2 {[%clk
0:00:28.6]} 25... Ncd3 {[%clk 0:01:26.9]} 26. h4 {[%clk 0:00:16.3]} 26... Qe5
{[%clk 0:00:34.1]} 27. Rb1 {[%clk 0:00:08.6]} 27... b6 {[%clk 0:00:33.7]} 28.
Kh1 {[%clk 0:00:05.8]} 28... h5 {[%clk 0:00:31.5]} 29. Be2 {[%clk 0:00:02.1]}
29... Qf6 {[%clk 0:00:32.1]} 30. Bxf4 {[%clk 0:00:01.6]} 30... Nxf4 {[%clk
0:00:28]} 0-1